[Event "Early-Titled-Tuesday-Blitz-January-23-2024"]
[Site "Chess.com"]
[Date "2024.01.23"]
[Round "8"]
[White "vugarrasulov"]
[Black "LyonBeast"]
[Result "0-1"]
[WhiteElo "2929"]
[BlackElo "3157"]
[TimeControl "180+1"]
[EndTime "9:29:22 PST"]
[Termination "LyonBeast won on time"]

1. e4 {[%clk 0:03:00.9]} 1... c5 {[%clk 0:02:58.1]} 2. Nf3 {[%clk 0:03:00.3]}
2... e6 {[%clk 0:02:58.5]} 3. d4 {[%clk 0:02:59.4]} 3... cxd4 {[%clk 0:02:59.4]}
4. Nxd4 {[%clk 0:03:00]} 4... Nf6 {[%clk 0:02:59.9]} 5. Nc3 {[%clk 0:03:00]}
5... Nc6 {[%clk 0:03:00.5]} 6. a3 {[%clk 0:03:00]} 6... Be7 {[%clk 0:02:59.3]}
7. Nxc6 {[%clk 0:02:56.8]} 7... bxc6 {[%clk 0:03:00.2]} 8. e5 {[%clk 0:02:56.7]}
8... Nd5 {[%clk 0:03:00.9]} 9. Ne4 {[%clk 0:02:57.1]} 9... Qc7 {[%clk
0:02:49.5]} 10. f4 {[%clk 0:02:54.9]} 10... Qb6 {[%clk 0:02:49.1]} 11. c4 {[%clk
0:02:41.5]} 11... Ne3 {[%clk 0:02:44.4]} 12. Qd3 {[%clk 0:02:41.8]} 12... Nxf1
{[%clk 0:02:40.6]} 13. Rxf1 {[%clk 0:02:40.3]} 13... c5 {[%clk 0:02:34.7]} 14.
Rf2 {[%clk 0:02:25.7]} 14... Bb7 {[%clk 0:02:33.6]} 15. Be3 {[%clk 0:02:25.8]}
15... O-O {[%clk 0:02:08.5]} 16. Rd1 {[%clk 0:02:25]} 16... Rac8 {[%clk
0:01:58.2]} 17. Nd6 {[%clk 0:02:10.3]} 17... Bxd6 {[%clk 0:01:49.5]} 18. Qxd6
{[%clk 0:02:11.2]} 18... Qa5+ {[%clk 0:01:31.6]} 19. Qd2 {[%clk 0:01:56.9]}
19... Qa6 {[%clk 0:01:29.5]} 20. Qc3 {[%clk 0:01:53.3]} 20... Rfd8 {[%clk
0:01:21.1]} 21. Rd6 {[%clk 0:01:51.9]} 21... Bc6 {[%clk 0:01:21.4]} 22. f5
{[%clk 0:01:28.8]} 22... exf5 {[%clk 0:01:16]} 23. Rxf5 {[%clk 0:01:29.7]} 23...
Re8 {[%clk 0:00:59.4]} 24. Rg5 {[%clk 0:01:10.4]} 24... Re6 {[%clk 0:00:56.5]}
25. Rxe6 {[%clk 0:01:10]} 25... dxe6 {[%clk 0:00:57.4]} 26. Bxc5 {[%clk
0:01:03.2]} 26... h6 {[%clk 0:00:51.4]} 27. Rg3 {[%clk 0:00:58.1]} 27... Be4
{[%clk 0:00:46.2]} 28. b4 {[%clk 0:00:56.2]} 28... Qb7 {[%clk 0:00:39.1]} 29.
Qd4 {[%clk 0:00:43.9]} 29... a6 {[%clk 0:00:39.6]} 30. Kf2 {[%clk 0:00:43.4]}
30... Bg6 {[%clk 0:00:39.1]} 31. Re3 {[%clk 0:00:41.6]} 31... Kh7 {[%clk
0:00:36.6]} 32. Bd6 {[%clk 0:00:41.4]} 32... Qc6 {[%clk 0:00:35.5]} 33. c5
{[%clk 0:00:41.2]} 33... a5 {[%clk 0:00:29.3]} 34. h4 {[%clk 0:00:40.4]} 34...
axb4 {[%clk 0:00:28.7]} 35. axb4 {[%clk 0:00:41.3]} 35... Ra8 {[%clk 0:00:28.6]}
36. Qd2 {[%clk 0:00:30.4]} 36... h5 {[%clk 0:00:23.6]} 37. Kg3 {[%clk
0:00:25.5]} 37... Ra1 {[%clk 0:00:22]} 38. Kh2 {[%clk 0:00:25.8]} 38... Qa4
{[%clk 0:00:18.7]} 39. Rg3 {[%clk 0:00:19]} 39... Rb1 {[%clk 0:00:11.4]} 40. Rc3
{[%clk 0:00:12.2]} 40... Qa1 {[%clk 0:00:10.9]} 41. c6 {[%clk 0:00:11.2]} 41...
Rh1+ {[%clk 0:00:06.5]} 42. Kg3 {[%clk 0:00:11.9]} 42... Rd1 {[%clk 0:00:07.1]}
43. Qe3 {[%clk 0:00:07.1]} 43... Re1 {[%clk 0:00:03.5]} 44. Qf2 {[%clk
0:00:07.4]} 44... Qxc3+ {[%clk 0:00:03]} 45. Kh2 {[%clk 0:00:07.4]} 45... Re3
{[%clk 0:00:01.1]} 46. c7 {[%clk 0:00:07.6]} 46... Re4 {[%clk 0:00:01.8]} 47. b5
{[%clk 0:00:07.5]} 47... Rc4 {[%clk 0:00:02]} 48. b6 {[%clk 0:00:07.8]} 48...
Qb3 {[%clk 0:00:02.6]} 49. Bc5 {[%clk 0:00:05.9]} 49... Rc2 {[%clk 0:00:01.3]}
50. c8=Q {[%clk 0:00:05.6]} 50... Rxf2 {[%clk 0:00:02.1]} 51. Bxf2 {[%clk
0:00:06.2]} 51... Be4 {[%clk 0:00:03]} 52. Qc5 {[%clk 0:00:04.5]} 52... Bd5
{[%clk 0:00:03.2]} 53. Qe3 {[%clk 0:00:04.9]} 53... Qc2 {[%clk 0:00:02.6]} 54.
Qf4 {[%clk 0:00:04.9]} 54... Qg6 {[%clk 0:00:02.8]} 55. Qg5 {[%clk 0:00:04.2]}
55... Qxg5 {[%clk 0:00:02.9]} 56. hxg5 {[%clk 0:00:05.1]} 56... Kg6 {[%clk
0:00:03.7]} 57. Be3 {[%clk 0:00:05.2]} 57... Kf5 {[%clk 0:00:04.1]} 58. Bd2
{[%clk 0:00:04]} 58... g6 {[%clk 0:00:04]} 59. Kg3 {[%clk 0:00:03.7]} 59... Kxe5
{[%clk 0:00:04.5]} 60. Kf2 {[%clk 0:00:04.4]} 60... Kf5 {[%clk 0:00:04.5]} 61.
g3 {[%clk 0:00:05]} 61... e5 {[%clk 0:00:04.7]} 62. Be3 {[%clk 0:00:04.9]} 62...
f6 {[%clk 0:00:05.2]} 63. gxf6 {[%clk 0:00:04.9]} 63... Kxf6 {[%clk 0:00:06.1]}
64. Ke2 {[%clk 0:00:05.3]} 64... Kf5 {[%clk 0:00:06.5]} 65. Kd3 {[%clk
0:00:05.8]} 65... Kg4 {[%clk 0:00:06.6]} 66. Bf2 {[%clk 0:00:06.1]} 66... Kf3
{[%clk 0:00:07.2]} 67. Be1 {[%clk 0:00:06.7]} 67... g5 {[%clk 0:00:07.5]} 68.
Kc3 {[%clk 0:00:06.5]} 68... Ke2 {[%clk 0:00:07.1]} 69. Bd2 {[%clk 0:00:06.8]}
69... h4 {[%clk 0:00:07.7]} 70. gxh4 {[%clk 0:00:02.4]} 70... gxh4 {[%clk
0:00:08.6]} 0-1

[Event "Early-Titled-Tuesday-Blitz-January-23-2024"]
[Site "Chess.com"]
[Date "2024.01.23"]
[Round "8"]
[White "Mihajlovskij"]
[Black "esrosenberg"]
[Result "0-1"]
[WhiteElo "2229"]
[BlackElo "2353"]
[TimeControl "180+1"]
[EndTime "9:29:24 PST"]
[Termination "esrosenberg won on time"]

1. e4 {[%clk 0:03:00.9]} 1... g6 {[%clk 0:02:59.8]} 2. d4 {[%clk 0:03:00.9]}
2... Bg7 {[%clk 0:03:00.4]} 3. Nc3 {[%clk 0:03:01.5]} 3... d5 {[%clk 0:03:00.8]}
4. exd5 {[%clk 0:02:58.2]} 4... Nf6 {[%clk 0:03:01.1]} 5. Bc4 {[%clk 0:02:57.6]}
5... c6 {[%clk 0:03:01.1]} 6. dxc6 {[%clk 0:02:51.8]} 6... Nxc6 {[%clk
0:03:01.8]} 7. Nge2 {[%clk 0:02:52.1]} 7... O-O {[%clk 0:03:01.4]} 8. O-O {[%clk
0:02:52.1]} 8... Na5 {[%clk 0:03:01.6]} 9. Bb3 {[%clk 0:02:47.8]} 9... b6 {[%clk
0:02:52.2]} 10. Ng3 {[%clk 0:02:37.6]} 10... Bb7 {[%clk 0:02:48.4]} 11. Be3
{[%clk 0:02:36.5]} 11... a6 {[%clk 0:02:37.1]} 12. Qe2 {[%clk 0:02:34]} 12... b5
{[%clk 0:02:32.9]} 13. f3 {[%clk 0:02:34]} 13... Rc8 {[%clk 0:02:29.8]} 14. Nce4
{[%clk 0:02:21.3]} 14... Nxb3 {[%clk 0:02:24.9]} 15. axb3 {[%clk 0:02:20.6]}
15... Nd5 {[%clk 0:02:22.3]} 16. Bf2 {[%clk 0:02:17.6]} 16... Nf4 {[%clk
0:01:44]} 17. Qd2 {[%clk 0:02:17.6]} 17... Ne6 {[%clk 0:01:39]} 18. Rfd1 {[%clk
0:02:13.9]} 18... h5 {[%clk 0:01:35.4]} 19. c3 {[%clk 0:02:07.1]} 19... h4
{[%clk 0:01:33.9]} 20. Ne2 {[%clk 0:02:07.3]} 20... h3 {[%clk 0:01:34.2]} 21. d5
{[%clk 0:02:00]} 21... Nc7 {[%clk 0:01:24.8]} 22. c4 {[%clk 0:01:59.4]} 22...
hxg2 {[%clk 0:01:23.7]} 23. Nc5 {[%clk 0:01:58.3]} 23... Ba8 {[%clk 0:01:16.6]}
24. Bd4 {[%clk 0:01:41.8]} 24... Qd6 {[%clk 0:01:11.6]} 25. Ne4 {[%clk
0:01:39.7]} 25... Qd7 {[%clk 0:01:06.8]} 26. Bxg7 {[%clk 0:01:38]} 26... Kxg7
{[%clk 0:01:06.9]} 27. Qd4+ {[%clk 0:01:38.1]} 27... Kg8 {[%clk 0:01:06.5]} 28.
Nc5 {[%clk 0:01:25.6]} 28... Qh3 {[%clk 0:01:02.6]} 29. Rd3 {[%clk 0:01:22]}
29... Ne8 {[%clk 0:00:48.5]} 30. Nd7 {[%clk 0:01:18.1]} 30... Qxd7 {[%clk
0:00:48]} 31. f4 {[%clk 0:01:16.5]} 31... Nf6 {[%clk 0:00:38.6]} 32. Rxa6 {[%clk
0:01:06.7]} 32... bxc4 {[%clk 0:00:32.7]} 33. bxc4 {[%clk 0:01:07.6]} 33... Kg7
{[%clk 0:00:30.2]} 34. Ra7 {[%clk 0:01:02.6]} 34... Rc7 {[%clk 0:00:27.4]} 35.
Rda3 {[%clk 0:00:59.1]} 35... Rxa7 {[%clk 0:00:16.9]} 36. Rxa7 {[%clk 0:01:00]}
36... Qd6 {[%clk 0:00:17.6]} 37. Nc3 {[%clk 0:00:53.9]} 37... Rh8 {[%clk
0:00:14.3]} 38. c5 {[%clk 0:00:51.6]} 38... Qb8 {[%clk 0:00:12.7]} 39. Ra2
{[%clk 0:00:24.8]} 39... Qb3 {[%clk 0:00:11.5]} 40. c6 {[%clk 0:00:21.3]} 40...
Rd8 {[%clk 0:00:09.3]} 41. Kxg2 {[%clk 0:00:19.7]} 41... Bxc6 {[%clk 0:00:08.9]}
42. Ra7 {[%clk 0:00:14.4]} 42... Bxd5+ {[%clk 0:00:08]} 43. Kg3 {[%clk
0:00:13.8]} 43... Rd6 {[%clk 0:00:07.4]} 44. Rxe7 {[%clk 0:00:13.7]} 44... Qb6
{[%clk 0:00:05.2]} 45. Qe5 {[%clk 0:00:02]} 45... Re6 {[%clk 0:00:05]} 46. Rxe6
{[%clk 0:00:02.5]} 46... Qxe6 {[%clk 0:00:04.7]} 47. Qd4 {[%clk 0:00:02.8]}
47... Be4 {[%clk 0:00:03]} 48. Kf2 {[%clk 0:00:02.1]} 48... Bf5 {[%clk
0:00:03.3]} 49. h4 {[%clk 0:00:01.7]} 49... Kg8 {[%clk 0:00:03.6]} 50. Kf3
{[%clk 0:00:01.7]} 50... Bg4+ {[%clk 0:00:03.6]} 51. Kg3 {[%clk 0:00:02.2]}
51... Nh5+ {[%clk 0:00:02.8]} 52. Kf2 {[%clk 0:00:02.6]} 52... Qf5 {[%clk
0:00:03]} 53. Qd8+ {[%clk 0:00:02.3]} 53... Kg7 {[%clk 0:00:03.3]} 54. Qd2
{[%clk 0:00:03.1]} 54... Bh3 {[%clk 0:00:03.1]} 55. Qd4+ {[%clk 0:00:01.8]}
55... Kg8 {[%clk 0:00:03.1]} 56. Ke3 {[%clk 0:00:02.7]} 56... Qg4 {[%clk
0:00:03]} 57. Qd8+ {[%clk 0:00:02.7]} 57... Kg7 {[%clk 0:00:03.1]} 58. Qd4+
{[%clk 0:00:03.1]} 58... Nf6 {[%clk 0:00:03.5]} 59. Nd5 {[%clk 0:00:03.1]} 59...
Qe6+ {[%clk 0:00:03.5]} 60. Qe5 {[%clk 0:00:01.4]} 60... Qxd5 {[%clk 0:00:03.2]}
61. Qxd5 {[%clk 0:00:01.3]} 61... Nxd5+ {[%clk 0:00:03.7]} 62. Kd4 {[%clk
0:00:01.4]} 62... Nxf4 {[%clk 0:00:04.2]} 63. b4 {[%clk 0:00:02.3]} 63... Bg2
{[%clk 0:00:04.2]} 0-1

[Event "Early-Titled-Tuesday-Blitz-January-23-2024"]
[Site "Chess.com"]
[Date "2024.01.23"]
[Round "8"]
[White "AlexTruskavetsky"]
[Black "FM_VS99"]
[Result "0-1"]
[WhiteElo "2697"]
[BlackElo "2557"]
[TimeControl "180+1"]
[EndTime "9:29:36 PST"]
[Termination "FM_VS99 won by resignation"]

1. d4 {[%clk 0:02:58.4]} 1... Nf6 {[%clk 0:02:59.8]} 2. c4 {[%clk 0:02:58.1]}
2... c5 {[%clk 0:03:00.4]} 3. d5 {[%clk 0:02:58.2]} 3... b5 {[%clk 0:03:01]} 4.
Nd2 {[%clk 0:02:53.6]} 4... d6 {[%clk 0:02:38.9]} 5. e4 {[%clk 0:02:52.9]} 5...
g6 {[%clk 0:02:39.2]} 6. cxb5 {[%clk 0:02:52.4]} 6... Bg7 {[%clk 0:02:39.4]} 7.
Ngf3 {[%clk 0:02:51.5]} 7... O-O {[%clk 0:02:39.9]} 8. a4 {[%clk 0:02:51.8]}
8... a6 {[%clk 0:02:40.3]} 9. Be2 {[%clk 0:02:51.5]} 9... Bd7 {[%clk 0:02:28.8]}
10. Ra3 {[%clk 0:02:50]} 10... axb5 {[%clk 0:02:27.2]} 11. axb5 {[%clk
0:02:50.9]} 11... Rxa3 {[%clk 0:02:18.1]} 12. bxa3 {[%clk 0:02:51.1]} 12... Qa5
{[%clk 0:02:18.5]} 13. O-O {[%clk 0:02:35]} 13... Bxb5 {[%clk 0:02:17.2]} 14.
Bb2 {[%clk 0:02:28.8]} 14... Nbd7 {[%clk 0:01:57.2]} 15. Bxb5 {[%clk 0:02:17.8]}
15... Qxb5 {[%clk 0:01:56.9]} 16. Qc2 {[%clk 0:02:18.5]} 16... Rb8 {[%clk
0:01:28.1]} 17. Rb1 {[%clk 0:02:11.1]} 17... Qe2 {[%clk 0:01:19.1]} 18. Re1
{[%clk 0:02:03]} 18... Qb5 {[%clk 0:01:08.3]} 19. Rb1 {[%clk 0:01:40.9]} 19...
Qe2 {[%clk 0:01:08]} 20. Bc3 {[%clk 0:01:38.4]} 20... Rxb1+ {[%clk 0:00:52.6]}
21. Qxb1 {[%clk 0:01:39.3]} 21... Ng4 {[%clk 0:00:51.8]} 22. Bxg7 {[%clk
0:01:34.1]} 22... Qxf2+ {[%clk 0:00:51]} 23. Kh1 {[%clk 0:01:34.7]} 23... Kxg7
{[%clk 0:00:45.5]} 24. h3 {[%clk 0:01:35.1]} 24... Ne3 {[%clk 0:00:40.2]} 25.
Qg1 {[%clk 0:01:23.2]} 25... Qe2 {[%clk 0:00:40.2]} 26. a4 {[%clk 0:01:21.5]}
26... c4 {[%clk 0:00:39.7]} 27. a5 {[%clk 0:01:14.6]} 27... c3 {[%clk
0:00:39.9]} 28. Nb3 {[%clk 0:01:15.1]} 28... c2 {[%clk 0:00:25.8]} 29. a6 {[%clk
0:01:13.3]} 29... Nf1 {[%clk 0:00:06.2]} 30. a7 {[%clk 0:01:05.3]} 30... Ng3+
{[%clk 0:00:06.3]} 31. Kh2 {[%clk 0:01:04.1]} 31... Nf1+ {[%clk 0:00:06.7]} 32.
Qxf1 {[%clk 0:00:46.9]} 32... Qxf1 {[%clk 0:00:07.6]} 33. a8=Q {[%clk
0:00:47.8]} 33... c1=Q {[%clk 0:00:08.2]} 34. Nxc1 {[%clk 0:00:48.3]} 34... Qxc1
{[%clk 0:00:07.9]} 35. Qa4 {[%clk 0:00:43.1]} 35... Qf4+ {[%clk 0:00:07.7]} 36.
Kg1 {[%clk 0:00:43.4]} 36... Nf6 {[%clk 0:00:08]} 37. h4 {[%clk 0:00:17]} 37...
Qxe4 {[%clk 0:00:08.3]} 38. Qa7 {[%clk 0:00:16.9]} 38... Nxd5 {[%clk 0:00:07.7]}
39. Qa1+ {[%clk 0:00:17.4]} 39... Nf6 {[%clk 0:00:07.6]} 40. Qd1 {[%clk
0:00:16]} 40... h5 {[%clk 0:00:07.4]} 41. Qa1 {[%clk 0:00:15.8]} 41... d5 {[%clk
0:00:07.6]} 42. Qa7 {[%clk 0:00:14.3]} 42... Ng4 {[%clk 0:00:07.1]} 43. Qa1+
{[%clk 0:00:13.7]} 43... e5 {[%clk 0:00:06.2]} 44. Qa7 {[%clk 0:00:13.5]} 44...
d4 {[%clk 0:00:05.7]} 45. Qa1 {[%clk 0:00:06.9]} 45... Qe3+ {[%clk 0:00:05.5]}
46. Kh1 {[%clk 0:00:06.9]} 46... Qf4 {[%clk 0:00:05.1]} 47. Qb2 {[%clk
0:00:05.2]} 47... Ne3 {[%clk 0:00:04.8]} 48. Qe2 {[%clk 0:00:02]} 48... Qg3
{[%clk 0:00:04.1]} 49. Qd3 {[%clk 0:00:01.7]} 49... Ng4 {[%clk 0:00:03.8]} 50.
Qe2 {[%clk 0:00:01.5]} 50... Nf2+ {[%clk 0:00:03.9]} 51. Kg1 {[%clk 0:00:02.3]}
51... Ng4 {[%clk 0:00:04.1]} 52. Ne1 {[%clk 0:00:02.8]} 52... Qxh4 {[%clk
0:00:03.7]} 53. Nf3 {[%clk 0:00:03]} 53... Qg3 {[%clk 0:00:04.2]} 54. Qe4 {[%clk
0:00:03.7]} 54... Qf4 {[%clk 0:00:02.8]} 55. Qe2 {[%clk 0:00:03.7]} 55... Qe3+
{[%clk 0:00:03]} 56. Kf1 {[%clk 0:00:04.3]} 56... Qxe2+ {[%clk 0:00:03.1]} 57.
Kxe2 {[%clk 0:00:05.2]} 57... f5 {[%clk 0:00:04]} 58. Kd3 {[%clk 0:00:05.8]}
58... Kf6 {[%clk 0:00:04.6]} 59. Nd2 {[%clk 0:00:06]} 59... Ke6 {[%clk
0:00:04.9]} 60. Nc4 {[%clk 0:00:05.2]} 60... Ne3 {[%clk 0:00:05.6]} 61. Nxe3
{[%clk 0:00:04.4]} 61... dxe3 {[%clk 0:00:06.1]} 62. Kxe3 {[%clk 0:00:05.3]}
62... g5 {[%clk 0:00:06.4]} 63. g3 {[%clk 0:00:05.6]} 63... Kd5 {[%clk
0:00:06.9]} 64. g4 {[%clk 0:00:05.3]} 64... hxg4 {[%clk 0:00:07.3]} 0-1

[Event "Early-Titled-Tuesday-Blitz-January-23-2024"]
[Site "Chess.com"]
[Date "2024.01.23"]
[Round "8"]
[White "Me_ch_an"]
[Black "Egorov_Pavel"]
[Result "0-1"]
[WhiteElo "2307"]
[BlackElo "2488"]
[TimeControl "180+1"]
[EndTime "9:29:36 PST"]
[Termination "Egorov_Pavel won by resignation"]

1. e4 {[%clk 0:03:00.9]} 1... c5 {[%clk 0:02:59.8]} 2. Nc3 {[%clk 0:03:00.2]}
2... Nc6 {[%clk 0:02:59.1]} 3. g3 {[%clk 0:02:59.7]} 3... h5 {[%clk 0:02:57.7]}
4. h3 {[%clk 0:02:59.1]} 4... Nf6 {[%clk 0:02:51.4]} 5. Bg2 {[%clk 0:02:58.7]}
5... d5 {[%clk 0:02:49.2]} 6. exd5 {[%clk 0:02:52.3]} 6... Nd4 {[%clk
0:02:48.5]} 7. d3 {[%clk 0:02:40.7]} 7... h4 {[%clk 0:02:46.3]} 8. g4 {[%clk
0:02:34.8]} 8... g6 {[%clk 0:02:42.1]} 9. Be3 {[%clk 0:02:30.8]} 9... Bg7 {[%clk
0:02:42.1]} 10. Qd2 {[%clk 0:02:30.7]} 10... O-O {[%clk 0:02:39.7]} 11. Bg5
{[%clk 0:02:22.7]} 11... b5 {[%clk 0:02:37.9]} 12. Bxh4 {[%clk 0:02:21.7]} 12...
b4 {[%clk 0:02:38.2]} 13. Nce2 {[%clk 0:02:09.1]} 13... Nxd5 {[%clk 0:02:36.6]}
14. Nxd4 {[%clk 0:02:05.5]} 14... Bxd4 {[%clk 0:02:36.4]} 15. Ne2 {[%clk
0:01:52]} 15... Bxb2 {[%clk 0:02:20.4]} 16. O-O {[%clk 0:01:51.6]} 16... Bb7
{[%clk 0:02:10.7]} 17. Rab1 {[%clk 0:01:44.5]} 17... Be5 {[%clk 0:02:07.6]} 18.
f4 {[%clk 0:01:38.2]} 18... Bg7 {[%clk 0:01:56.2]} 19. f5 {[%clk 0:01:36.8]}
19... Qc7 {[%clk 0:01:48.5]} 20. Bg3 {[%clk 0:01:32.4]} 20... Be5 {[%clk
0:01:33.3]} 21. Bxe5 {[%clk 0:01:01.1]} 21... Qxe5 {[%clk 0:01:34.2]} 22. Be4
{[%clk 0:01:01.5]} 22... Nc3 {[%clk 0:00:49]} 23. Nxc3 {[%clk 0:01:00.5]} 23...
bxc3 {[%clk 0:00:47.3]} 24. Qg2 {[%clk 0:00:53]} 24... Bxe4 {[%clk 0:00:46.1]}
25. dxe4 {[%clk 0:00:50.7]} 25... Rad8 {[%clk 0:00:42.3]} 26. Rbe1 {[%clk
0:00:34.2]} 26... Rd2 {[%clk 0:00:39.6]} 27. Rf2 {[%clk 0:00:33.1]} 27... Rfd8
{[%clk 0:00:34.3]} 28. fxg6 {[%clk 0:00:29]} 28... fxg6 {[%clk 0:00:32.3]} 29.
Ref1 {[%clk 0:00:29.3]} 29... Rxf2 {[%clk 0:00:19.1]} 30. Qxf2 {[%clk
0:00:29.5]} 30... Qd4 {[%clk 0:00:18.6]} 31. Kg2 {[%clk 0:00:22.4]} 31... Qxe4+
{[%clk 0:00:14.2]} 32. Kg3 {[%clk 0:00:17.9]} 32... Qe5+ {[%clk 0:00:13.9]} 33.
Kh4 {[%clk 0:00:17.5]} 33... Qh8+ {[%clk 0:00:04.1]} 34. Kg3 {[%clk 0:00:16.8]}
34... Qe5+ {[%clk 0:00:04.2]} 35. Kh4 {[%clk 0:00:17.3]} 35... Qf6+ {[%clk
0:00:04.9]} 36. Qxf6 {[%clk 0:00:16.5]} 36... exf6 {[%clk 0:00:05.5]} 37. Rxf6
{[%clk 0:00:17.2]} 37... Rd2 {[%clk 0:00:06.4]} 38. Rxg6+ {[%clk 0:00:16.4]}
38... Kf7 {[%clk 0:00:06.5]} 39. Rc6 {[%clk 0:00:16.4]} 39... Rxc2 {[%clk
0:00:06.5]} 40. Rxc5 {[%clk 0:00:16.9]} 40... Rc1 {[%clk 0:00:06]} 41. a4 {[%clk
0:00:15.1]} 41... c2 {[%clk 0:00:06]} 42. a5 {[%clk 0:00:15.2]} 42... Ke6 {[%clk
0:00:06.3]} 43. Kg5 {[%clk 0:00:14.7]} 43... Kd6 {[%clk 0:00:06.9]} 44. Rc3
{[%clk 0:00:14.7]} 44... Kd5 {[%clk 0:00:07.2]} 45. h4 {[%clk 0:00:15.2]} 45...
Kd4 {[%clk 0:00:07.9]} 46. Rc8 {[%clk 0:00:15.4]} 46... Kd3 {[%clk 0:00:08.8]}
47. h5 {[%clk 0:00:15.8]} 47... Ra1 {[%clk 0:00:07.9]} 48. Rxc2 {[%clk
0:00:12.2]} 48... Rxa5+ {[%clk 0:00:06.7]} 49. Kg6 {[%clk 0:00:11.9]} 49... Kxc2
{[%clk 0:00:07.1]} 50. h6 {[%clk 0:00:12]} 50... Ra1 {[%clk 0:00:03.8]} 51. g5
{[%clk 0:00:10.9]} 51... a5 {[%clk 0:00:04.2]} 52. h7 {[%clk 0:00:10.1]} 52...
Rh1 {[%clk 0:00:04.5]} 53. Kg7 {[%clk 0:00:09.6]} 53... a4 {[%clk 0:00:05.2]}
54. h8=Q {[%clk 0:00:08.3]} 54... Rxh8 {[%clk 0:00:06.1]} 55. Kxh8 {[%clk
0:00:08.8]} 55... a3 {[%clk 0:00:07]} 56. g6 {[%clk 0:00:09.3]} 56... a2 {[%clk
0:00:07.9]} 57. g7 {[%clk 0:00:09.2]} 57... a1=Q {[%clk 0:00:08.8]} 58. Kh7
{[%clk 0:00:09.2]} 58... Qh1+ {[%clk 0:00:09]} 59. Kg6 {[%clk 0:00:09.5]} 59...
Qg2+ {[%clk 0:00:09.2]} 60. Kf7 {[%clk 0:00:09.8]} 60... Qf3+ {[%clk 0:00:09.8]}
61. Ke7 {[%clk 0:00:09.7]} 61... Qe4+ {[%clk 0:00:10.2]} 62. Kf7 {[%clk
0:00:09.9]} 62... Qf5+ {[%clk 0:00:10.6]} 63. Ke7 {[%clk 0:00:10.3]} 63... Qg6
{[%clk 0:00:11.1]} 64. Kf8 {[%clk 0:00:10.9]} 64... Qf6+ {[%clk 0:00:11.8]} 65.
Kg8 {[%clk 0:00:11.4]} 65... Kd3 {[%clk 0:00:12.5]} 66. Kh7 {[%clk 0:00:12.1]}
66... Qh4+ {[%clk 0:00:13]} 67. Kg6 {[%clk 0:00:12]} 67... Qg4+ {[%clk
0:00:13.6]} 68. Kf7 {[%clk 0:00:11.8]} 68... Qf5+ {[%clk 0:00:14.1]} 69. Ke7
{[%clk 0:00:11.3]} 69... Qg6 {[%clk 0:00:14.5]} 70. Kf8 {[%clk 0:00:12.2]} 70...
Qf6+ {[%clk 0:00:15.1]} 71. Kg8 {[%clk 0:00:12.5]} 71... Ke4 {[%clk 0:00:15.6]}
72. Kh7 {[%clk 0:00:13.4]} 72... Qh4+ {[%clk 0:00:15.8]} 73. Kg6 {[%clk
0:00:13.3]} 73... Qg4+ {[%clk 0:00:16.4]} 74. Kf7 {[%clk 0:00:14.1]} 74... Qf5+
{[%clk 0:00:16.6]} 75. Ke7 {[%clk 0:00:14.4]} 75... Qg6 {[%clk 0:00:16.9]} 76.
Kf8 {[%clk 0:00:15.3]} 76... Qf6+ {[%clk 0:00:17.5]} 77. Kg8 {[%clk 0:00:15.9]}
77... Kf5 {[%clk 0:00:18.1]} 78. Kh7 {[%clk 0:00:16.8]} 78... Qg6+ {[%clk
0:00:18.3]} 79. Kh8 {[%clk 0:00:15.5]} 79... Qh6+ {[%clk 0:00:18.8]} 80. Kg8
{[%clk 0:00:15.3]} 80... Kf6 {[%clk 0:00:19.4]} 0-1